[Event "Live Chess"]
[Site "Chess.com"]
[Date "2023.05.21"]
[Round "-"]
[White "Bob2pen"]
[Black "RichardABates"]
[Result "0-1"]
[WhiteElo "1882"]
[BlackElo "2190"]
[TimeControl "300"]
[EndTime "8:38:41 PDT"]
[Termination "RichardABates won by resignation"]

1. c4 {[%clk 0:04:56.5]} 1... Nf6 {[%clk 0:04:57.8]} 2. g3 {[%clk 0:04:55.6]}
2... e6 {[%clk 0:04:56.3]} 3. Bg2 {[%clk 0:04:54.5]} 3... d5 {[%clk 0:04:55.2]}
4. Nf3 {[%clk 0:04:53.6]} 4... Be7 {[%clk 0:04:53.3]} 5. O-O {[%clk 0:04:52.6]}
5... O-O {[%clk 0:04:52.1]} 6. b3 {[%clk 0:04:51.6]} 6... b6 {[%clk 0:04:49.9]}
7. Bb2 {[%clk 0:04:50.6]} 7... c5 {[%clk 0:04:47.9]} 8. d3 {[%clk 0:04:48.9]}
8... Bb7 {[%clk 0:04:45.8]} 9. Nbd2 {[%clk 0:04:47]} 9... d4 {[%clk 0:04:44.2]}
10. b4 {[%clk 0:04:34.6]} 10... a5 {[%clk 0:04:32.6]} 11. b5 {[%clk 0:04:29.5]}
11... Nbd7 {[%clk 0:04:28.4]} 12. Qc2 {[%clk 0:04:27]} 12... e5 {[%clk
0:04:27.1]} 13. e4 {[%clk 0:04:22.7]} 13... dxe3 {[%clk 0:04:21.3]} 14. fxe3
{[%clk 0:04:21]} 14... e4 {[%clk 0:04:20]} 15. Nxe4 {[%clk 0:04:10.3]} 15...
Nxe4 {[%clk 0:04:18]} 16. dxe4 {[%clk 0:04:08.7]} 16... Nf6 {[%clk 0:04:07.1]}
17. Rad1 {[%clk 0:04:05.5]} 17... Qc8 {[%clk 0:04:03.2]} 18. e5 {[%clk
0:03:59.6]} 18... Ng4 {[%clk 0:03:59.3]} 19. Qc3 {[%clk 0:03:54.3]} 19... Qe6
{[%clk 0:03:53.8]} 20. h3 {[%clk 0:03:38.4]} 20... Nh6 {[%clk 0:03:49.3]} 21.
Kh2 {[%clk 0:03:30.8]} 21... Rad8 {[%clk 0:03:45.2]} 22. a4 {[%clk 0:03:09]}
22... Nf5 {[%clk 0:03:38.6]} 23. h4 {[%clk 0:03:02.5]} 23... Qg6 {[%clk
0:03:32.7]} 24. Ng5 {[%clk 0:02:56.4]} 24... Bxg2 {[%clk 0:03:22.8]} 25. Kxg2
{[%clk 0:02:54.9]} 25... Bxg5 {[%clk 0:03:21.5]} 26. hxg5 {[%clk 0:02:53.3]}
26... Qxg5 {[%clk 0:03:20.4]} 27. e4 {[%clk 0:02:43.3]} 27... Ne3+ {[%clk
0:03:17.7]} 28. Kh2 {[%clk 0:02:38]} 28... Nxd1 {[%clk 0:03:11.8]} 0-1

[Event "Live Chess"]
[Site "Chess.com"]
[Date "2023.05.21"]
[Round "-"]
[White "LiamBellwood"]
[Black "whatnot126"]
[Result "0-1"]
[WhiteElo "1924"]
[BlackElo "2071"]
[TimeControl "300"]
[EndTime "8:38:46 PDT"]
[Termination "whatnot126 won by resignation"]

1. d4 {[%clk 0:04:59.5]} 1... d6 {[%clk 0:04:59.2]} 2. Nc3 {[%clk 0:04:56.9]}
2... Nf6 {[%clk 0:04:58.6]} 3. Bf4 {[%clk 0:04:56.6]} 3... g6 {[%clk 0:04:57.8]}
4. Qd2 {[%clk 0:04:54.1]} 4... c6 {[%clk 0:04:55.6]} 5. e4 {[%clk 0:04:50]} 5...
Qa5 {[%clk 0:04:54.1]} 6. f3 {[%clk 0:04:47.9]} 6... b5 {[%clk 0:04:53]} 7. e5
{[%clk 0:04:25.5]} 7... dxe5 {[%clk 0:04:42.6]} 8. dxe5 {[%clk 0:04:25.4]} 8...
Nfd7 {[%clk 0:04:19.3]} 9. Bd3 {[%clk 0:04:03.9]} 9... Bg7 {[%clk 0:04:17.8]}
10. e6 {[%clk 0:04:01]} 10... fxe6 {[%clk 0:04:15.9]} 11. Nh3 {[%clk 0:03:52.6]}
11... b4 {[%clk 0:04:14.5]} 12. Ne4 {[%clk 0:03:41.6]} 12... Nc5 {[%clk
0:03:53.4]} 13. Nxc5 {[%clk 0:03:26.9]} 13... Qxc5 {[%clk 0:03:53.3]} 14. Be3
{[%clk 0:03:22.1]} 14... Qa5 {[%clk 0:03:48.8]} 15. O-O {[%clk 0:03:19.1]} 15...
Bxb2 {[%clk 0:03:46.3]} 16. Bh6 {[%clk 0:03:06.1]} 16... e5 {[%clk 0:03:23.3]}
17. Qg5 {[%clk 0:02:51.2]} 17... Bxa1 {[%clk 0:03:12]} 18. f4 {[%clk 0:02:39.8]}
18... Bd4+ {[%clk 0:03:08.7]} 19. Kh1 {[%clk 0:02:37.8]} 19... Bxh3 {[%clk
0:03:05.8]} 20. gxh3 {[%clk 0:02:34.5]} 20... Qd5+ {[%clk 0:03:03.7]} 0-1

[Event "Live Chess"]
[Site "Chess.com"]
[Date "2023.05.21"]
[Round "-"]
[White "luckywookie"]
[Black "Hussamalhaidar"]
[Result "1-0"]
[WhiteElo "823"]
[BlackElo "1154"]
[TimeControl "300"]
[EndTime "8:39:02 PDT"]
[Termination "luckywookie won on time"]

1. e4 {[%clk 0:04:59]} 1... Nc6 {[%clk 0:04:55.4]} 2. c3 {[%clk 0:04:55.7]} 2...
e5 {[%clk 0:04:53.6]} 3. Nf3 {[%clk 0:04:51.7]} 3... Nf6 {[%clk 0:04:51.1]} 4.
d4 {[%clk 0:04:47.8]} 4... exd4 {[%clk 0:04:49.5]} 5. cxd4 {[%clk 0:04:46]} 5...
Nxe4 {[%clk 0:04:47.6]} 6. d5 {[%clk 0:04:44.8]} 6... Ne7 {[%clk 0:04:29.5]} 7.
Nc3 {[%clk 0:04:38.4]} 7... Nxc3 {[%clk 0:04:25.9]} 8. bxc3 {[%clk 0:04:36.1]}
8... Ng6 {[%clk 0:04:24.2]} 9. Qe2+ {[%clk 0:04:34.9]} 9... Qe7 {[%clk
0:04:22.3]} 10. Qxe7+ {[%clk 0:04:31.1]} 10... Bxe7 {[%clk 0:04:20.4]} 11. Bd3
{[%clk 0:04:30.4]} 11... Bc5 {[%clk 0:04:08.7]} 12. Be3 {[%clk 0:04:16.6]} 12...
Bxe3 {[%clk 0:04:05]} 13. fxe3 {[%clk 0:04:15.7]} 13... O-O {[%clk 0:04:03.7]}
14. O-O-O {[%clk 0:04:13]} 14... Re8 {[%clk 0:04:02]} 15. Rhe1 {[%clk
0:04:11.8]} 15... a6 {[%clk 0:03:56.1]} 16. g3 {[%clk 0:04:11]} 16... b5 {[%clk
0:03:53.3]} 17. e4 {[%clk 0:04:04.3]} 17... Ne5 {[%clk 0:03:43.8]} 18. Nxe5
{[%clk 0:04:01.8]} 18... Rxe5 {[%clk 0:03:40.4]} 19. Rf1 {[%clk 0:03:57.4]}
19... d6 {[%clk 0:03:35.5]} 20. Rf2 {[%clk 0:03:50.8]} 20... h6 {[%clk
0:03:33.1]} 21. Rdf1 {[%clk 0:03:48.8]} 21... f6 {[%clk 0:03:31.1]} 22. Kd2
{[%clk 0:03:26.6]} 22... Bd7 {[%clk 0:03:28.5]} 23. Re1 {[%clk 0:03:16.7]} 23...
a5 {[%clk 0:03:26.1]} 24. a3 {[%clk 0:03:09.5]} 24... c5 {[%clk 0:03:13.8]} 25.
Rb1 {[%clk 0:03:00.3]} 25... c4 {[%clk 0:03:05.4]} 26. Be2 {[%clk 0:02:58.6]}
26... Rxe4 {[%clk 0:03:02.6]} 27. a4 {[%clk 0:02:55]} 27... b4 {[%clk
0:02:45.8]} 28. cxb4 {[%clk 0:02:50.4]} 28... axb4 {[%clk 0:02:43]} 29. Rxb4
{[%clk 0:02:45.4]} 29... Rxa4 {[%clk 0:02:40.5]} 30. Rb8+ {[%clk 0:02:39.8]}
30... Kf7 {[%clk 0:02:35.7]} 31. Rb7 {[%clk 0:02:26]} 31... Ra2+ {[%clk
0:02:31.6]} 32. Kc3 {[%clk 0:02:24.3]} 32... Raxe2 {[%clk 0:01:53.4]} 33. Rxe2
{[%clk 0:02:17.2]} 33... Rxe2 {[%clk 0:01:49.9]} 34. Rxd7+ {[%clk 0:02:15.2]}
34... Ke8 {[%clk 0:01:32.4]} 35. Rxg7 {[%clk 0:02:13.6]} 35... Rxh2 {[%clk
0:01:27.7]} 36. Kxc4 {[%clk 0:02:11.9]} 36... Rg2 {[%clk 0:01:16.7]} 37. Kb5
{[%clk 0:02:07.1]} 37... Rc2 {[%clk 0:01:03.7]} 38. Kb6 {[%clk 0:01:55.3]} 38...
h5 {[%clk 0:00:56.6]} 39. Rh7 {[%clk 0:01:45.4]} 39... Rc3 {[%clk 0:00:50]} 40.
Rxh5 {[%clk 0:01:36.4]} 40... Rxg3 {[%clk 0:00:48.1]} 41. Kc6 {[%clk 0:01:35.5]}
41... Rg5 {[%clk 0:00:39.3]} 42. Rh7 {[%clk 0:01:29.4]} 42... f5 {[%clk
0:00:32.5]} 43. Kxd6 {[%clk 0:01:27.8]} 43... f4 {[%clk 0:00:31.5]} 44. Ke6
{[%clk 0:01:24]} 44... Kd8 {[%clk 0:00:15]} 45. d6 {[%clk 0:01:21.3]} 45... f3
{[%clk 0:00:13.5]} 46. Rh8+ {[%clk 0:01:19]} 1-0

[Event "Live Chess"]
[Site "Chess.com"]
[Date "2023.05.21"]
[Round "-"]
[White "Cimon"]
[Black "LL220284LL"]
[Result "0-1"]
[WhiteElo "1834"]
[BlackElo "2237"]
[TimeControl "300"]
[EndTime "8:39:03 PDT"]
[Termination "LL220284LL won by resignation"]

1. Nf3 {[%clk 0:04:56.8]} 1... c6 {[%clk 0:04:57.6]} 2. d4 {[%clk 0:04:55.1]}
2... g6 {[%clk 0:04:57.5]} 3. c4 {[%clk 0:04:52]} 3... Bg7 {[%clk 0:04:57.4]} 4.
g3 {[%clk 0:04:48.2]} 4... d6 {[%clk 0:04:56.7]} 5. Bg2 {[%clk 0:04:46.7]} 5...
Nf6 {[%clk 0:04:56.6]} 6. Nc3 {[%clk 0:04:44.8]} 6... O-O {[%clk 0:04:56]} 7.
O-O {[%clk 0:04:43.7]} 7... Nbd7 {[%clk 0:04:54.9]} 8. e4 {[%clk 0:04:42.4]}
8... Qc7 {[%clk 0:04:52.4]} 9. h3 {[%clk 0:04:36.9]} 9... e5 {[%clk 0:04:50.9]}
10. Be3 {[%clk 0:04:35]} 10... Rd8 {[%clk 0:04:48.6]} 11. Rc1 {[%clk 0:04:30.7]}
11... Nf8 {[%clk 0:04:47.5]} 12. Qe2 {[%clk 0:04:21.2]} 12... b6 {[%clk
0:04:46.6]} 13. d5 {[%clk 0:04:14.8]} 13... c5 {[%clk 0:04:41]} 14. a3 {[%clk
0:04:07.7]} 14... h6 {[%clk 0:04:39.4]} 15. b4 {[%clk 0:04:03.8]} 15... N8h7
{[%clk 0:04:38.2]} 16. Nb5 {[%clk 0:04:01.2]} 16... Qe7 {[%clk 0:04:35.7]} 17.
bxc5 {[%clk 0:03:55.5]} 17... bxc5 {[%clk 0:04:33.8]} 18. Ne1 {[%clk 0:03:38.3]}
18... Nh5 {[%clk 0:04:30.1]} 19. Qd1 {[%clk 0:03:24]} 19... Rf8 {[%clk 0:04:27]}
20. Qa4 {[%clk 0:03:14.6]} 20... Bd7 {[%clk 0:04:22.8]} 21. Qa5 {[%clk
0:03:10.1]} 21... a6 {[%clk 0:04:14.6]} 22. Nc3 {[%clk 0:03:01.3]} 22... f5
{[%clk 0:04:12.5]} 23. Bd2 {[%clk 0:02:29.3]} 23... f4 {[%clk 0:04:08.9]} 24. g4
{[%clk 0:02:25.8]} 24... Ng5 {[%clk 0:03:55.5]} 25. gxh5 {[%clk 0:02:19.8]}
25... Nxh3+ {[%clk 0:03:54.2]} 26. Bxh3 {[%clk 0:02:16.9]} 26... Bxh3 {[%clk
0:03:53.2]} 27. Nf3 {[%clk 0:02:07.9]} 27... gxh5 {[%clk 0:03:44.1]} 28. Kh2
{[%clk 0:02:01.6]} 28... Bg4 {[%clk 0:03:42.9]} 29. Ne1 {[%clk 0:01:47.4]} 29...
Qh4+ {[%clk 0:03:40.9]} 30. Kg1 {[%clk 0:01:45.8]} 30... f3 {[%clk 0:03:39.1]}
0-1

[Event "Live Chess"]
[Site "Chess.com"]
[Date "2023.05.21"]
[Round "-"]
[White "Mechhead7"]
[Black "lateforthesky"]
[Result "0-1"]
[WhiteElo "1772"]
[BlackElo "2087"]
[TimeControl "300"]
[EndTime "8:39:14 PDT"]
[Termination "lateforthesky won by resignation"]

1. e4 {[%clk 0:04:57.9]} 1... c5 {[%clk 0:04:58.5]} 2. Nf3 {[%clk 0:04:56.7]}
2... Nf6 {[%clk 0:04:57.4]} 3. d3 {[%clk 0:04:52.2]} 3... d6 {[%clk 0:04:54.9]}
4. Be2 {[%clk 0:04:48.8]} 4... g6 {[%clk 0:04:53.1]} 5. c3 {[%clk 0:04:46.3]}
5... Bg7 {[%clk 0:04:52.4]} 6. Nbd2 {[%clk 0:04:44.7]} 6... Nc6 {[%clk
0:04:50.8]} 7. O-O {[%clk 0:04:43.8]} 7... O-O {[%clk 0:04:49.6]} 8. Re1 {[%clk
0:04:42.8]} 8... e5 {[%clk 0:04:48.7]} 9. h3 {[%clk 0:04:41.2]} 9... Re8 {[%clk
0:04:47.6]} 10. a4 {[%clk 0:04:31.8]} 10... d5 {[%clk 0:04:44.8]} 11. Qc2 {[%clk
0:04:21.4]} 11... b6 {[%clk 0:04:42.9]} 12. Bf1 {[%clk 0:04:15.1]} 12... Bb7
{[%clk 0:04:39.1]} 13. exd5 {[%clk 0:04:08.2]} 13... Nxd5 {[%clk 0:04:37.6]} 14.
Nc4 {[%clk 0:04:00.1]} 14... Qc7 {[%clk 0:04:15.3]} 15. Bg5 {[%clk 0:03:35.4]}
15... f6 {[%clk 0:04:07.9]} 16. Bh4 {[%clk 0:03:33.8]} 16... Rad8 {[%clk
0:03:48.1]} 17. Rad1 {[%clk 0:02:43.7]} 17... g5 {[%clk 0:03:34.4]} 18. Bg3
{[%clk 0:02:38.5]} 18... Nf4 {[%clk 0:03:29.3]} 19. Qb3 {[%clk 0:01:57.5]} 19...
Kh8 {[%clk 0:03:27]} 20. Ne3 {[%clk 0:01:51.2]} 20... Na5 {[%clk 0:03:12.9]} 21.
Qc2 {[%clk 0:01:50]} 21... Bxf3 {[%clk 0:03:10.9]} 22. gxf3 {[%clk 0:01:48.4]}
22... Qd7 {[%clk 0:03:03.1]} 23. Bxf4 {[%clk 0:01:42.9]} 23... exf4 {[%clk
0:02:50.9]} 24. Nc4 {[%clk 0:01:22.5]} 24... Rxe1 {[%clk 0:02:33.4]} 25. Rxe1
{[%clk 0:01:20.5]} 25... Nxc4 {[%clk 0:02:32.2]} 26. dxc4 {[%clk 0:01:19.5]}
26... h5 {[%clk 0:02:15.3]} 27. Kg2 {[%clk 0:01:15.5]} 27... Kg8 {[%clk
0:02:11.1]} 28. Qe4 {[%clk 0:00:55.4]} 28... Qd2 {[%clk 0:01:40.3]} 29. Qe6+
{[%clk 0:00:52.6]} 29... Kh8 {[%clk 0:01:30.7]} 30. Qe7 {[%clk 0:00:49.7]} 30...
Qd7 {[%clk 0:01:19]} 31. Qxd7 {[%clk 0:00:45.4]} 31... Rxd7 {[%clk 0:01:17.8]}
32. Re8+ {[%clk 0:00:44.5]} 32... Kh7 {[%clk 0:01:15.5]} 33. Ra8 {[%clk
0:00:41.7]} 33... Kg6 {[%clk 0:01:13.8]} 34. b4 {[%clk 0:00:33.8]} 34... f5
{[%clk 0:01:04.1]} 35. bxc5 {[%clk 0:00:31.7]} 35... bxc5 {[%clk 0:01:00.6]} 36.
Rc8 {[%clk 0:00:27]} 36... Bxc3 {[%clk 0:00:55.6]} 37. Rxc5 {[%clk 0:00:25.8]}
37... Bd4 {[%clk 0:00:53.7]} 38. Rc6+ {[%clk 0:00:24.9]} 38... Kg7 {[%clk
0:00:51.7]} 39. Bd3 {[%clk 0:00:23.5]} 39... Bxf2 {[%clk 0:00:39.8]} 40. Bxf5
{[%clk 0:00:21.8]} 40... Rd2 {[%clk 0:00:38.9]} 41. Rc7+ {[%clk 0:00:20.1]}
41... Kf6 {[%clk 0:00:37.6]} 42. Be4 {[%clk 0:00:18.7]} 42... Bb6+ {[%clk
0:00:35.1]} 0-1

[Event "Live Chess"]
[Site "Chess.com"]
[Date "2023.05.21"]
[Round "-"]
[White "Duke_of_Bebington"]
[Black "alexlines8"]
[Result "1-0"]
[WhiteElo "1556"]
[BlackElo "1253"]
[TimeControl "300"]
[EndTime "8:39:18 PDT"]
[Termination "Duke_of_Bebington won by checkmate"]

1. e4 {[%clk 0:04:58.8]} 1... c6 {[%clk 0:04:57]} 2. d4 {[%clk 0:04:57.1]} 2...
d5 {[%clk 0:04:54.4]} 3. e5 {[%clk 0:04:56.2]} 3... Bf5 {[%clk 0:04:49.2]} 4. g4
{[%clk 0:04:55]} 4... Bg6 {[%clk 0:04:40.1]} 5. h4 {[%clk 0:04:52.5]} 5... h6
{[%clk 0:04:31.6]} 6. h5 {[%clk 0:04:49.2]} 6... Bh7 {[%clk 0:04:27.6]} 7. e6
{[%clk 0:04:48.6]} 7... fxe6 {[%clk 0:04:16.5]} 8. Bd3 {[%clk 0:04:45.9]} 8...
Nf6 {[%clk 0:04:11.7]} 9. Bxh7 {[%clk 0:04:42.3]} 9... Rxh7 {[%clk 0:04:02.5]}
10. Qd3 {[%clk 0:04:41.8]} 10... Nbd7 {[%clk 0:03:44.4]} 11. Qg6# {[%clk
0:04:38]} 1-0

[Event "Live Chess"]
[Site "Chess.com"]
[Date "2023.05.21"]
[Round "-"]
[White "LordBenin"]
[Black "ZackirtyChess"]
[Result "0-1"]
[WhiteElo "1388"]
[BlackElo "1175"]
[TimeControl "300"]
[EndTime "8:39:21 PDT"]
[Termination "ZackirtyChess won by resignation"]

1. d4 {[%clk 0:04:58.9]} 1... e5 {[%clk 0:04:57.2]} 2. d5 {[%clk 0:04:56.4]}
2... c6 {[%clk 0:04:55.3]} 3. dxc6 {[%clk 0:04:54.5]} 3... Nxc6 {[%clk
0:04:54.2]} 4. Nc3 {[%clk 0:04:48.7]} 4... Nf6 {[%clk 0:04:52.3]} 5. g3 {[%clk
0:04:44.3]} 5... Bb4 {[%clk 0:04:51.7]} 6. Bd2 {[%clk 0:04:41.8]} 6... d5 {[%clk
0:04:51.2]} 7. Bg2 {[%clk 0:04:36.5]} 7... d4 {[%clk 0:04:49.7]} 8. Ne4 {[%clk
0:04:34.8]} 8... Nxe4 {[%clk 0:04:44.5]} 9. Bxe4 {[%clk 0:04:32.1]} 9... Bxd2+
{[%clk 0:04:43.1]} 10. Qxd2 {[%clk 0:04:30.7]} 10... Qb6 {[%clk 0:04:38.5]} 11.
b3 {[%clk 0:04:18.8]} 11... Be6 {[%clk 0:04:26.4]} 12. Nf3 {[%clk 0:04:14.4]}
12... O-O {[%clk 0:04:17.4]} 13. Bxc6 {[%clk 0:04:07.7]} 13... Qxc6 {[%clk
0:03:57.7]} 14. O-O {[%clk 0:04:05.3]} 14... Bd5 {[%clk 0:03:53.9]} 15. Nxe5
{[%clk 0:03:57.9]} 15... Qe6 {[%clk 0:03:52.1]} 16. Qxd4 {[%clk 0:03:48.4]}
16... f6 {[%clk 0:03:47.2]} 17. Nf3 {[%clk 0:03:44.6]} 17... Rfd8 {[%clk
0:03:40.7]} 18. Qf4 {[%clk 0:03:26.5]} 18... Qxe2 {[%clk 0:03:32.7]} 19. Nd4
{[%clk 0:03:08.4]} 19... Qe4 {[%clk 0:03:27.1]} 20. Qxe4 {[%clk 0:02:46.1]}
20... Bxe4 {[%clk 0:03:27]} 21. c3 {[%clk 0:02:44.8]} 21... Rac8 {[%clk
0:03:18.4]} 22. Rac1 {[%clk 0:02:41.7]} 22... a6 {[%clk 0:03:07.8]} 23. Rfd1
{[%clk 0:02:26.6]} 23... b5 {[%clk 0:03:05.3]} 24. Ne2 {[%clk 0:02:04.3]} 24...
b4 {[%clk 0:03:05.2]} 25. c4 {[%clk 0:02:01]} 25... Bf3 {[%clk 0:03:02.9]} 26.
Re1 {[%clk 0:01:37.8]} 26... Rd2 {[%clk 0:02:52.7]} 27. Nf4 {[%clk 0:01:20.8]}
27... Rxa2 {[%clk 0:02:35.8]} 28. Re7 {[%clk 0:01:09.2]} 28... Rd8 {[%clk
0:02:30.7]} 29. Nh5 {[%clk 0:00:58.3]} 29... g6 {[%clk 0:02:26.4]} 30. Nxf6+
{[%clk 0:00:56.3]} 30... Kf8 {[%clk 0:02:22]} 31. Rd7 {[%clk 0:00:44.4]} 31...
Rxd7 {[%clk 0:02:18.4]} 32. Nxd7+ {[%clk 0:00:43.2]} 32... Ke7 {[%clk
0:02:18.3]} 33. Ne5 {[%clk 0:00:40.3]} 33... Bb7 {[%clk 0:02:14]} 34. Re1 {[%clk
0:00:34.9]} 34... Ke8 {[%clk 0:02:05.5]} 35. Nxg6+ {[%clk 0:00:30.9]} 35... Kf7
{[%clk 0:02:03.5]} 36. Nf4 {[%clk 0:00:29.5]} 36... Rb2 {[%clk 0:02:01.1]} 37.
Re3 {[%clk 0:00:27.7]} 37... Rb1+ {[%clk 0:01:59.7]} 0-1

[Event "Live Chess"]
[Site "Chess.com"]
[Date "2023.05.21"]
[Round "-"]
[White "BillythekidFellowes"]
[Black "Alfiedog12"]
[Result "1-0"]
[WhiteElo "2132"]
[BlackElo "870"]
[TimeControl "300"]
[EndTime "8:39:21 PDT"]
[Termination "BillythekidFellowes won by resignation"]

1. e4 {[%clk 0:04:58.1]} 1... c6 {[%clk 0:04:58]} 2. Nc3 {[%clk 0:04:57.1]} 2...
d5 {[%clk 0:04:57.5]} 3. exd5 {[%clk 0:04:57]} 3... cxd5 {[%clk 0:04:56]} 4. d4
{[%clk 0:04:56.9]} 4... Bf5 {[%clk 0:04:53.8]} 5. Nf3 {[%clk 0:04:56.8]} 5... e6
{[%clk 0:04:51.7]} 6. Bd3 {[%clk 0:04:56.3]} 6... Bg6 {[%clk 0:04:47.8]} 7. Qe2
{[%clk 0:04:53.1]} 7... Nf6 {[%clk 0:04:46.2]} 8. Bxg6 {[%clk 0:04:52]} 8...
hxg6 {[%clk 0:04:44.4]} 9. Ne5 {[%clk 0:04:51.7]} 9... Nbd7 {[%clk 0:04:41.1]}
10. Qb5 {[%clk 0:04:50.4]} 10... Qb6 {[%clk 0:04:37.4]} 11. Nxd7 {[%clk
0:04:47.4]} 11... Nxd7 {[%clk 0:04:33.4]} 12. a4 {[%clk 0:04:44.1]} 12... Be7
{[%clk 0:04:22]} 13. O-O {[%clk 0:04:41.1]} 13... Qc7 {[%clk 0:04:17.8]} 14. g3
{[%clk 0:04:38.6]} 14... Bf6 {[%clk 0:03:57.2]} 15. Bf4 {[%clk 0:04:36.9]} 15...
e5 {[%clk 0:03:48.8]} 16. Nxd5 {[%clk 0:04:35.3]} 16... Qxc2 {[%clk 0:03:27.7]}
17. dxe5 {[%clk 0:04:31.6]} 17... Be7 {[%clk 0:03:02.8]} 18. Rac1 {[%clk
0:04:26]} 18... Qe4 {[%clk 0:02:55.3]} 19. Rc7 {[%clk 0:04:21.6]} 19... Qf5
{[%clk 0:02:23.5]} 20. Rfc1 {[%clk 0:04:14.5]} 20... Qh3 {[%clk 0:02:18.2]} 21.
g4 {[%clk 0:04:10.3]} 21... Qxg4+ {[%clk 0:02:05.9]} 22. Bg3 {[%clk 0:04:09.5]}
22... Bh4 {[%clk 0:01:51]} 23. Ne3 {[%clk 0:04:04.9]} 23... Qe6 {[%clk
0:01:32.8]} 24. Rc8+ {[%clk 0:03:53]} 24... Rxc8 {[%clk 0:01:30.1]} 25. Rxc8+
{[%clk 0:03:51.6]} 25... Bd8 {[%clk 0:01:24.4]} 26. Nd5 {[%clk 0:03:44.4]} 26...
a6 {[%clk 0:01:04.7]} 27. Nc7+ {[%clk 0:03:39.1]} 27... Ke7 {[%clk 0:00:58.8]}
28. Qb4+ {[%clk 0:03:38.1]} 1-0

[Event "Live Chess"]
[Site "Chess.com"]
[Date "2023.05.21"]
[Round "-"]
[White "Ferrarifan27"]
[Black "yarek"]
[Result "1-0"]
[WhiteElo "2057"]
[BlackElo "1859"]
[TimeControl "300"]
[EndTime "8:39:23 PDT"]
[Termination "Ferrarifan27 won on time"]

1. e4 {[%clk 0:04:58.8]} 1... g6 {[%clk 0:04:57.8]} 2. d4 {[%clk 0:04:57.4]}
2... Bg7 {[%clk 0:04:56.8]} 3. Nf3 {[%clk 0:04:56.6]} 3... c6 {[%clk 0:04:56.1]}
4. Nc3 {[%clk 0:04:54.4]} 4... d6 {[%clk 0:04:56]} 5. Bd3 {[%clk 0:04:52.7]}
5... d5 {[%clk 0:04:55.9]} 6. O-O {[%clk 0:04:51.6]} 6... Bg4 {[%clk 0:04:51.5]}
7. h3 {[%clk 0:04:50.2]} 7... Bxf3 {[%clk 0:04:50.2]} 8. Qxf3 {[%clk 0:04:50.1]}
8... e6 {[%clk 0:04:49.3]} 9. exd5 {[%clk 0:04:48.8]} 9... cxd5 {[%clk
0:04:46.3]} 10. Re1 {[%clk 0:04:45.8]} 10... Ne7 {[%clk 0:04:41.4]} 11. Bg5
{[%clk 0:04:42.6]} 11... O-O {[%clk 0:04:37]} 12. Nxd5 {[%clk 0:04:29.3]} 12...
Qxd5 {[%clk 0:04:18.5]} 13. Bxe7 {[%clk 0:04:26.4]} 13... Qxf3 {[%clk
0:04:13.4]} 14. gxf3 {[%clk 0:04:24.4]} 14... Re8 {[%clk 0:04:12.8]} 15. Bc5
{[%clk 0:04:14.8]} 15... Nd7 {[%clk 0:04:06.4]} 16. c3 {[%clk 0:04:10.2]} 16...
Nxc5 {[%clk 0:04:00.8]} 17. dxc5 {[%clk 0:04:10.1]} 17... Red8 {[%clk
0:03:55.9]} 18. Rad1 {[%clk 0:04:01.8]} 18... Rac8 {[%clk 0:03:51.7]} 19. Be4
{[%clk 0:03:59.1]} 19... Rxd1 {[%clk 0:03:41.3]} 20. Rxd1 {[%clk 0:03:59]} 20...
Rxc5 {[%clk 0:03:39.7]} 21. Rd8+ {[%clk 0:03:51.7]} 21... Bf8 {[%clk 0:03:37.9]}
22. Kf1 {[%clk 0:03:41.3]} 22... Rb5 {[%clk 0:03:11.9]} 23. b3 {[%clk
0:03:37.5]} 23... b6 {[%clk 0:03:05.5]} 24. Ra8 {[%clk 0:03:28.4]} 24... a5
{[%clk 0:03:00.9]} 25. Rb8 {[%clk 0:03:22.1]} 25... Rh5 {[%clk 0:02:36.5]} 26.
Kg2 {[%clk 0:03:20.4]} 26... b5 {[%clk 0:02:35.3]} 27. f4 {[%clk 0:03:16.5]}
27... Kg7 {[%clk 0:02:31.8]} 28. Bc6 {[%clk 0:03:03.7]} 28... Rc5 {[%clk
0:02:23.7]} 29. Bxb5 {[%clk 0:02:56.5]} 29... Rxc3 {[%clk 0:02:22]} 30. Ra8
{[%clk 0:02:39.1]} 30... Bb4 {[%clk 0:02:15]} 31. Bc4 {[%clk 0:02:31.8]} 31...
Rc2 {[%clk 0:02:11.7]} 32. Ra7 {[%clk 0:02:23.1]} 32... Kf6 {[%clk 0:02:10]} 33.
a3 {[%clk 0:02:17.7]} 33... Rxf2+ {[%clk 0:02:06.8]} 34. Kg3 {[%clk 0:02:00.1]}
34... Be1 {[%clk 0:02:02.2]} 35. a4 {[%clk 0:01:35]} 35... h5 {[%clk 0:01:51.5]}
36. Bb5 {[%clk 0:01:24.2]} 36... Rb2+ {[%clk 0:01:46.8]} 37. Kf3 {[%clk
0:01:23]} 37... Rxb3+ {[%clk 0:01:45.6]} 38. Ke2 {[%clk 0:01:20.2]} 38... Bb4
{[%clk 0:01:40.1]} 39. Be8 {[%clk 0:01:18.6]} 39... Rb2+ {[%clk 0:01:23.2]} 40.
Kf3 {[%clk 0:01:11.8]} 40... Rb3+ {[%clk 0:01:17.5]} 41. Ke4 {[%clk 0:01:10.6]}
41... Be7 {[%clk 0:00:48.5]} 42. Rxa5 {[%clk 0:01:06.9]} 42... Rxh3 {[%clk
0:00:45.5]} 43. Ra7 {[%clk 0:01:01]} 43... Rb3 {[%clk 0:00:34.3]} 44. a5 {[%clk
0:00:59.3]} 44... h4 {[%clk 0:00:32]} 45. Ra8 {[%clk 0:00:42.9]} 45... h3 {[%clk
0:00:29.3]} 46. Bc6 {[%clk 0:00:42]} 46... h2 {[%clk 0:00:24.9]} 47. Rh8 {[%clk
0:00:40.9]} 47... Ra3 {[%clk 0:00:20.7]} 48. Rxh2 {[%clk 0:00:36.3]} 48... Rxa5
{[%clk 0:00:20.2]} 49. Be8 {[%clk 0:00:27.3]} 49... Bf8 {[%clk 0:00:14.1]} 50.
Rh7 {[%clk 0:00:25.1]} 50... Bg7 {[%clk 0:00:13.6]} 51. Bc6 {[%clk 0:00:21.8]}
51... Rc5 {[%clk 0:00:12.8]} 52. Be8 {[%clk 0:00:20.2]} 52... Rc4+ {[%clk
0:00:12]} 53. Kf3 {[%clk 0:00:18.9]} 53... Rb4 {[%clk 0:00:11.6]} 54. Bc6 {[%clk
0:00:17.5]} 54... Rb3+ {[%clk 0:00:10.6]} 55. Kg4 {[%clk 0:00:16.8]} 55... Rb1
{[%clk 0:00:09.2]} 56. Bg2 {[%clk 0:00:13.6]} 56... Rg1 {[%clk 0:00:08.2]} 57.
Kf3 {[%clk 0:00:12.6]} 57... Rc1 {[%clk 0:00:07.6]} 58. Bh3 {[%clk 0:00:11.3]}
58... Rc3+ {[%clk 0:00:07.1]} 59. Kg4 {[%clk 0:00:10.1]} 59... Rc4 {[%clk
0:00:06.4]} 60. Bg2 {[%clk 0:00:09.4]} 60... Rc3 {[%clk 0:00:05.8]} 61. Bf3
{[%clk 0:00:09]} 61... Rc1 {[%clk 0:00:03.3]} 62. Rh3 {[%clk 0:00:06.7]} 62...
Rc3 {[%clk 0:00:02.6]} 63. Rh7 {[%clk 0:00:06]} 63... Rc1 {[%clk 0:00:02]} 64.
Rxg7 {[%clk 0:00:04.5]} 1-0